bitfinex-derivatives/quotes_BTCF0:USTF0_20250528
["timestamp","ask_amount","ask_price","bid_price","bid_amount"]
[1748449617017,1.25279937,107480.0,107470.0,0.88806072]
[1748449617309,1.25279937,107480.0,107470.0,0.87363]
[1748449617613,1.25279937,107480.0,107470.0,0.8880616]
[1748449617815,1.25279937,107480.0,107470.0,0.88807264]
[1748449618013,1.25279937,107480.0,107470.0,0.88807263]
[1748449618215,1.25279937,107480.0,107470.0,0.88807264]
[1748449618911,1.20918765,107480.0,107470.0,0.91297009]
[1748449619514,1.20918765,107480.0,107470.0,0.91297485]
[1748449619712,1.20918765,107480.0,107470.0,0.89852745]
[1748449620017,1.20918765,107480.0,107470.0,0.91297541]
[1748449620408,0.77506765,107480.0,107470.0,0.6981659]
[1748449620603,1.20914765,107480.0,107470.0,0.89852745]
[1748449620812,1.20914765,107480.0,107470.0,0.91297724]
[1748449621012,1.19402717,107480.0,107470.0,0.91297724]
[1748449621414,1.19402717,107480.0,107470.0,0.69816773]
[1748449621614,1.19402717,107480.0,107470.0,0.91297724]
[1748449621814,1.19402717,107480.0,107470.0,0.698168]
[1748449622017,1.19402717,107480.0,107470.0,0.93975673]
[1748449623927,1.19398717,107480.0,107470.0,0.93975673]
[1748449624316,1.19398717,107480.0,107470.0,0.99185619]
[1748449624520,1.19398717,107480.0,107470.0,0.73581794]
[1748449624822,1.20813144,107480.0,107470.0,0.99185612]
[1748449625122,0.77409144,107480.0,107470.0,0.99185767]
[1748449625431,0.72758684,107480.0,107470.0,0.75026894]
[1748449625637,0.72758684,107480.0,107470.0,0.9918592]
[1748449625926,0.72758684,107480.0,107470.0,0.96497973]
[1748449626126,0.72758684,107480.0,107470.0,0.96497981]
[1748449626621,0.72758684,107480.0,107470.0,0.75027024]
[1748449626829,0.72758684,107480.0,107470.0,0.9649795]
[1748449627223,0.90758684,107480.0,107470.0,0.74026983]
[1748449627417,0.90758684,107480.0,107470.0,0.95497909]
[1748449627611,0.90758684,107480.0,107470.0,0.95497903]
[1748449628117,0.90758684,107480.0,107470.0,0.95497902]
[1748449628517,0.95119971,107480.0,107470.0,0.93092743]
[1748449629026,0.95119971,107480.0,107470.0,0.85659794]
[1748449629226,0.95119971,107480.0,107470.0,0.6418892]
[1748449629529,0.95119971,107480.0,107470.0,0.85659846]
[1748449630225,0.95119971,107480.0,107470.0,0.6418892]
[1748449630528,0.95119971,107480.0,107470.0,0.84214612]
[1748449630728,0.95119971,107480.0,107470.0,0.85657859]
[1748449630926,0.95119971,107480.0,107470.0,0.85936859]
[1748449631712,0.95119971,107480.0,107470.0,0.66690799]
[1748449631929,0.90758684,107480.0,107470.0,0.66690799]
[1748449632232,0.95120225,107480.0,107470.0,0.61230799]
[1748449632430,0.95120225,107480.0,107470.0,0.61242799]
[1748449633527,0.95120225,107480.0,107470.0,0.88063722]
[1748449634322,0.95120225,107480.0,107470.0,0.88063714]
[1748449635237,0.77120225,107480.0,107470.0,0.88063539]
[1748449635929,0.77120225,107480.0,107470.0,0.88063282]
[1748449636129,0.58517975,107480.0,107470.0,0.80628447]
[1748449636332,0.86546434,107480.0,107470.0,0.96766555]
[1748449636531,0.43146434,107480.0,107470.0,0.86928447]
[1748449636725,0.85132007,107480.0,107470.0,0.96766555]
[1748449636924,0.85132007,107480.0,107470.0,0.96766353]
[1748449637633,0.85132007,107480.0,107470.0,0.96765815]
[1748449638019,1.03733637,107480.0,107470.0,0.96765815]
[1748449638429,1.03733637,107480.0,107470.0,0.96765814]
[1748449639835,1.03733637,107480.0,107470.0,0.96765611]
[1748449640019,1.03733637,107480.0,107470.0,0.75294685]
[1748449640230,1.03733637,107480.0,107470.0,0.96765611]
[1748449640428,1.03733637,107480.0,107470.0,0.69982685]
[1748449640429,1.13643637,107480.0,107470.0,0.69982685]
[1748449640626,1.13643637,107480.0,107470.0,0.69994685]
[1748449640936,1.13643637,107480.0,107470.0,0.6998283]
[1748449641133,1.13643637,107480.0,107470.0,0.68552794]
[1748449641327,1.13643637,107480.0,107470.0,0.69994884]
[1748449641529,1.13643637,107480.0,107470.0,0.68552794]
[1748449641837,1.13643637,107480.0,107470.0,0.69994912]
[1748449642738,1.18004716,107480.0,107470.0,0.67586103]
[1748449643038,1.39475642,107480.0,107470.0,0.43266746]
[1748449643221,1.55601325,107480.0,107470.0,0.39870106]
[1748449643422,1.49799642,107480.0,107470.0,0.43585846]
[1748449643633,1.28324716,107480.0,107470.0,0.62039477]
[1748449643824,1.28324716,107480.0,107470.0,0.93410403]
[1748449644533,1.28324716,107480.0,107470.0,0.71939477]
[1748449644728,1.28324716,107480.0,107470.0,0.7193926]
[1748449644927,1.28320471,107480.0,107470.0,0.7193926]
[1748449645129,1.28320471,107480.0,107470.0,0.71939276]
[1748449646135,1.23963637,107480.0,107470.0,0.71939297]
[1748449646537,0.95038007,107480.0,107470.0,0.66985274]
[1748449646738,1.13639637,107480.0,107470.0,0.67985274]
[1748449647335,1.13639637,107480.0,107470.0,0.66543823]
[1748449647641,1.13639637,107480.0,107470.0,0.67985336]
[1748449648039,0.70243637,107480.0,107470.0,0.89456262]
[1748449648243,1.03729637,107480.0,107470.0,0.89456262]
[1748449648441,1.03729637,107480.0,107470.0,0.88014749]
[1748449648638,1.03729637,107480.0,107470.0,0.82027014]
[1748449649039,1.03729637,107480.0,107470.0,0.82026994]
[1748449649342,0.60333637,107480.0,107470.0,0.82027026]
[1748449649542,1.03729637,107480.0,107470.0,0.82027026]
[1748449650240,1.03729637,107480.0,107470.0,0.89452934]
[1748449650434,1.03729637,107480.0,107470.0,0.67982059]
[1748449650745,1.03729637,107480.0,107470.0,0.82027077]
[1748449651335,1.03729637,107480.0,107470.0,0.80585592]
[1748449651540,1.03729637,107480.0,107470.0,0.82027177]
[1748449652045,1.03729637,107480.0,107470.0,0.82027201]
[1748449652341,1.03729637,107480.0,107470.0,0.91865309]
[1748449653041,0.85128007,107480.0,107470.0,0.91865287]
[1748449653242,0.83616014,107480.0,107470.0,0.91865287]
[1748449654144,1.02217654,107480.0,107470.0,0.91865287]
[1748449654753,1.02217654,107480.0,107470.0,0.91865337]
[1748449655850,0.83612014,107480.0,107470.0,0.91865337]
[1748449656234,0.83612014,107480.0,107470.0,0.91865937]
[1748449656645,0.83612014,107480.0,107470.0,0.90865937]
[1748449656845,0.83612014,107480.0,107470.0,1.09865937]
[1748449657345,1.02213654,107480.0,107470.0,1.09865937]
[1748449657546,0.51945764,107490.0,107480.0,0.1860164]
[1748449657740,0.61368224,107490.0,107480.0,0.9213064]
[1748449657939,1.04760224,107490.0,107480.0,0.92130552]
[1748449658142,1.04760224,107490.0,107480.0,0.92130544]
[1748449658344,0.61368224,107490.0,107480.0,0.92130544]
[1748449658534,1.04760224,107490.0,107480.0,1.01968652]
[1748449658740,1.04860224,107490.0,107480.0,0.92130544]
[1748449658940,1.04860224,107490.0,107480.0,0.90688598]
[1748449659141,1.04860224,107490.0,107480.0,0.9213034]
[1748449659348,1.04960224,107490.0,107480.0,0.9213034]
[1748449659547,1.04960224,107490.0,107480.0,0.92130329]
[1748449659850,1.04960224,107490.0,107480.0,0.92130163]
[1748449660045,1.04960224,107490.0,107480.0,0.92130168]
[1748449660248,1.04860224,107490.0,107480.0,0.92130168]
[1748449660543,1.04756224,107490.0,107480.0,0.92509168]
[1748449660742,0.86156324,107490.0,107480.0,0.92509168]
[1748449660945,0.86156324,107490.0,107480.0,0.94921244]
[1748449661148,0.79468,107490.0,107480.0,0.94921244]
[1748449661751,0.79468,107490.0,107480.0,0.9492077]
[1748449661957,0.3608,107490.0,107480.0,0.9492077]
[1748449662147,0.9806791,107490.0,107480.0,0.9492077]
[1748449662343,0.84348,107490.0,107480.0,0.9492077]
[1748449662543,0.4096,107490.0,107480.0,0.9492077]
[1748449662755,0.84348,107490.0,107480.0,0.9492077]
[1748449662952,0.94288,107490.0,107480.0,0.9492077]
[1748449663153,0.92776147,107490.0,107480.0,0.9492077]
[1748449663359,1.11376047,107490.0,107480.0,0.9492077]
[1748449663847,1.11376047,107490.0,107480.0,0.94920483]
[1748449664246,1.11376047,107490.0,107480.0,0.94920468]
[1748449666949,1.11376047,107490.0,107480.0,0.94920368]
[1748449667555,1.11376047,107490.0,107480.0,0.94970674]
[1748449668146,1.11376047,107490.0,107480.0,0.94970556]
[1748449668452,1.11376047,107490.0,107480.0,0.7349963]
[1748449668652,1.11376047,107490.0,107480.0,0.71079025]
[1748449668855,1.11376047,107490.0,107480.0,0.7107899]
[1748449669652,1.11376047,107490.0,107480.0,0.7109099]
[1748449670257,1.11376047,107490.0,107480.0,0.92561937]
[1748449670960,1.11376047,107490.0,107480.0,0.92561986]
[1748449671649,1.11376047,107490.0,107480.0,1.02400094]
[1748449671848,1.11376047,107490.0,107480.0,1.02400074]
[1748449672251,1.11376047,107490.0,107480.0,1.02400075]
[1748449673862,1.11376047,107490.0,107480.0,0.94982572]
[1748449674459,1.11376047,107490.0,107480.0,0.9354198]
[1748449674759,1.11376047,107490.0,107480.0,0.9498293]
[1748449675554,1.11376047,107490.0,107480.0,0.94983078]
[1748449676363,1.11376047,107490.0,107480.0,0.94983282]
[1748449676956,1.11376047,107490.0,107480.0,0.94983281]
[1748449677267,1.11376047,107490.0,107480.0,0.9354198]
[1748449677453,1.11376047,107490.0,107480.0,0.94983431]
[1748449677657,0.67988047,107490.0,107480.0,0.94983431]
[1748449677860,0.49388147,107490.0,107480.0,0.73512504]
[1748449678161,0.67988047,107490.0,107480.0,0.9498343]
[1748449678761,0.67988047,107490.0,107480.0,0.85145322]
[1748449679255,0.67988047,107490.0,107480.0,0.85145389]
[1748449679852,0.49388147,107490.0,107480.0,0.85145389]
[1748449680056,1.11364047,107490.0,107480.0,0.85145389]
[1748449680257,0.92764147,107490.0,107480.0,0.85145389]
[1748449680558,0.92764147,107490.0,107480.0,0.85146245]
[1748449680761,0.39448147,107490.0,107480.0,0.85146245]
[1748449680958,0.82824147,107490.0,107480.0,0.94984353]
[1748449681157,0.82824147,107490.0,107480.0,0.9354198]
[1748449681354,0.82824147,107490.0,107480.0,0.94984307]
[1748449681556,0.99912186,107490.0,107480.0,0.9354198]
[1748449681750,1.09702186,107490.0,107480.0,0.94984372]
[1748449682453,1.09702186,107490.0,107480.0,0.73513446]
[1748449682762,1.09702186,107490.0,107480.0,0.94984357]
[1748449683061,1.09702186,107490.0,107480.0,0.68703431]
[1748449683454,1.09702186,107490.0,107480.0,0.68691431]
[1748449683655,1.09702186,107490.0,107480.0,0.68703653]
[1748449685164,1.09702186,107490.0,107480.0,0.68703893]
[1748449685366,0.66326186,107490.0,107480.0,0.68703893]
[1748449685664,1.09698186,107490.0,107480.0,0.68703893]
[1748449686166,1.09698186,107490.0,107480.0,0.63484522]
[1748449686360,1.09698186,107490.0,107480.0,0.63472522]
[1748449686566,1.09698186,107490.0,107480.0,0.53646414]
[1748449686757,1.31169112,107490.0,107480.0,0.63484522]
[1748449686962,1.09698186,107490.0,107480.0,0.63484908]
[1748449687463,1.09698186,107490.0,107480.0,0.63472908]
[1748449687664,1.09698186,107490.0,107480.0,0.63484908]
[1748449688966,1.09698186,107490.0,107480.0,0.63485343]
[1748449689470,1.09698186,107490.0,107480.0,0.68505342]
[1748449690269,1.09698186,107490.0,107480.0,0.63485342]
[1748449690670,1.09698186,107490.0,107480.0,0.61084675]
[1748449690863,1.09698186,107490.0,107480.0,0.61072602]
[1748449691065,1.09698186,107490.0,107480.0,0.61084603]
[1748449691462,1.09698186,107490.0,107480.0,0.61084595]
[1748449692470,1.09698186,107490.0,107480.0,0.59640387]
[1748449693162,1.09698186,107490.0,107480.0,0.61084484]
[1748449693657,0.7664191,107490.0,107480.0,0.61084484]
[1748449693859,1.1272191,107490.0,107480.0,0.61084484]
[1748449696162,1.1272191,107490.0,107480.0,0.61084138]
[1748449696563,1.1272191,107490.0,107480.0,0.61083828]
[1748449698665,1.1272191,107490.0,107480.0,0.61083575]
[1748449700773,1.17080013,107490.0,107480.0,0.65041603]
[1748449700981,1.1272191,107490.0,107480.0,0.65041603]
[1748449701271,1.1272191,107490.0,107480.0,0.65041508]
[1748449702268,1.34192836,107490.0,107480.0,0.65041508]
[1748449702468,1.34192836,107490.0,107480.0,0.65041666]
[1748449702672,1.44500836,107490.0,107480.0,0.65041666]
[1748449702875,1.48858939,107490.0,107480.0,0.65041666]
[1748449703668,1.48858939,107490.0,107480.0,0.63598573]
[1748449703978,1.51545578,107490.0,107480.0,0.65041788]
[1748449704564,1.51545578,107490.0,107480.0,0.650418]
[1748449704768,1.51545578,107490.0,107480.0,0.65041737]
[1748449705278,1.51544547,107490.0,107480.0,0.65041737]
[1748449705575,1.51544547,107490.0,107480.0,0.65041614]
[1748449706279,1.51544547,107490.0,107480.0,0.65041604]
[1748449706681,1.51544547,107490.0,107480.0,0.65041569]
[1748449707282,1.51544547,107490.0,107480.0,0.61322573]
[1748449707573,1.51544547,107490.0,107480.0,0.59879577]
[1748449707879,1.51544547,107490.0,107480.0,0.61322588]
[1748449708176,1.5734623,107490.0,107480.0,0.61322588]
[1748449708377,1.75702112,107490.0,107480.0,0.61322588]
[1748449709170,1.81503795,107490.0,107480.0,0.61322846]
[1748449709574,1.81503795,107490.0,107480.0,0.59879659]
[1748449709575,1.82503149,107490.0,107480.0,0.59879659]
[1748449709770,1.82503149,107490.0,107480.0,0.61322871]
[1748449709973,1.82503149,107490.0,107480.0,0.61310871]
[1748449710282,1.58345584,107490.0,107480.0,0.61322882]
[1748449710581,1.82503149,107490.0,107480.0,0.61322882]
[1748449711779,1.91217062,107490.0,107480.0,0.18751007]
[1748449711974,1.91217062,107490.0,107480.0,0.18751038]
[1748449712170,1.86860636,107490.0,107480.0,0.18763038]
[1748449712369,1.86860636,107490.0,107480.0,0.15044501]
[1748449712872,1.86860636,107490.0,107480.0,0.15044299]
[1748449713079,1.78146723,107490.0,107480.0,0.18762836]
[1748449713275,1.53989158,107490.0,107480.0,0.54364466]
[1748449713484,1.53989158,107490.0,107480.0,0.59124466]
[1748449713786,1.53989158,107490.0,107480.0,0.83282031]
[1748449713787,1.00309158,107490.0,107480.0,0.83282031]
[1748449713974,1.52530812,107490.0,107480.0,0.69100571]
[1748449714173,1.52530812,107490.0,107480.0,0.69100382]
[1748449715479,1.88610812,107490.0,107480.0,0.69100443]
[1748449715872,1.88610812,107490.0,107480.0,0.69100534]
[1748449716076,1.64453247,107490.0,107480.0,0.69100534]
[1748449716482,1.7025493,107490.0,107480.0,0.69100631]
[1748449717083,1.65899593,107490.0,107480.0,0.65384175]
[1748449717387,1.70255516,107490.0,107480.0,0.69101173]
[1748449718481,1.70255572,107490.0,107480.0,0.69101088]
[1748449718679,1.91726372,107490.0,107480.0,0.69101088]
[1748449719081,1.91726372,107490.0,107480.0,0.67658036]
[1748449719282,1.91726372,107490.0,107480.0,0.69101082]
[1748449720380,1.64453889,107490.0,107480.0,0.69101109]
[1748449720891,1.70255572,107490.0,107480.0,0.69101109]
[1748449721595,1.70255572,107490.0,107480.0,0.69101218]
[1748449722387,1.64453889,107490.0,107480.0,0.69101218]
[1748449722887,1.85454474,107490.0,107480.0,0.69101696]
[1748449723589,1.85454474,107490.0,107480.0,0.69101819]
[1748449723789,1.91256157,107490.0,107480.0,0.69101819]
[1748449724190,1.85454474,107490.0,107480.0,0.69101852]
[1748449724592,1.85454474,107490.0,107480.0,0.69101847]
[1748449724792,2.06925274,107490.0,107480.0,0.69101847]
[1748449724989,1.91256157,107490.0,107480.0,0.69101847]
[1748449725895,1.91256157,107490.0,107480.0,0.6910194]
[1748449726891,1.91256157,107490.0,107480.0,0.69101996]
[1748449727192,1.91256541,107490.0,107480.0,0.69102794]
[1748449727994,1.91256541,107490.0,107480.0,0.69102867]
[1748449728594,1.91256541,107490.0,107480.0,0.50501237]
[1748449728800,2.12727341,107490.0,107480.0,0.69102867]
[1748449728994,2.12727341,107490.0,107480.0,0.45481237]
[1748449729196,1.91256541,107490.0,107480.0,0.28481237]
[1748449729395,2.12727341,107490.0,107480.0,0.28469237]
[1748449729599,2.12727341,107490.0,107480.0,0.28481237]
[1748449729798,2.12727341,107490.0,107480.0,0.28481427]
[1748449730093,2.12727341,107490.0,107480.0,0.28481428]
[1748449730300,2.12727341,107490.0,107480.0,0.23721428]
[1748449731391,2.12728198,107490.0,107480.0,0.23722259]
[1748449731699,2.12728409,107490.0,107480.0,0.2372222]
[1748449731893,2.08370393,107490.0,107480.0,0.2372222]
[1748449732196,2.08370393,107490.0,107480.0,0.2372217]
[1748449732501,2.12728023,107490.0,107480.0,0.2372217]
[1748449733200,2.12728023,107490.0,107480.0,0.23722275]
[1748449733396,2.22031623,107490.0,107480.0,0.05889111]
[1748449733591,0.1860163,107480.0,107470.0,0.11157591]
[1748449733898,1.32161531,107480.0,107470.0,0.6111336]
[1748449734196,1.27249072,107480.0,107470.0,0.68550801]
[1748449734398,1.21439171,107480.0,107470.0,0.68550801]
[1748449735105,1.31749072,107480.0,107470.0,0.68550801]
[1748449735298,1.36519072,107480.0,107470.0,0.68562801]
[1748449735491,1.36519072,107480.0,107470.0,0.6112536]
[1748449735690,1.57988096,107480.0,107470.0,0.6122536]
[1748449735994,1.58088096,107480.0,107470.0,0.6122536]
[1748449736400,1.36717296,107480.0,107470.0,0.6112536]
[1748449736899,1.30907395,107480.0,107470.0,0.6112536]
[1748449737286,1.36717296,107480.0,107470.0,0.6112536]
[1748449737491,1.30907395,107480.0,107470.0,0.68562801]
[1748449737691,1.30907395,107480.0,107470.0,0.6112536]
[1748449737889,1.55065894,107480.0,107470.0,0.6112536]
[1748449739603,1.01425894,107480.0,107470.0,0.6112536]
[1748449739900,1.80065894,107480.0,107470.0,0.6112536]
[1748449741502,1.80065894,107480.0,107470.0,0.68562801]
[1748449741503,1.70791894,107480.0,107470.0,0.68562801]
[1748449741706,1.42791894,107480.0,107470.0,0.68562801]
[1748449742801,1.42789871,107480.0,107470.0,0.68562801]
[1748449744505,1.52459871,107480.0,107470.0,0.68562801]
[1748449745003,1.52459871,107480.0,107470.0,0.6112536]
[1748449745205,1.52459871,107480.0,107470.0,0.68562801]
[1748449745701,1.52459871,107480.0,107470.0,0.5630536]
[1748449747097,1.52460443,107480.0,107470.0,0.5630536]
[1748449747397,1.52460443,107480.0,107470.0,0.2830536]
[1748449747600,1.52460443,107480.0,107470.0,0.45742801]
[1748449748605,1.72460443,107480.0,107470.0,0.17449441]
[1748449748805,1.78270344,107480.0,107470.0,0.1496]
[1748449749007,1.78270344,107480.0,107470.0,0.14972]
[1748449749410,1.78270344,107480.0,107470.0,0.1496]
[1748449749605,1.78270344,107480.0,107470.0,0.14972]
[1748449749807,1.78270344,107480.0,107470.0,0.1496]
[1748449750008,1.78270344,107480.0,107470.0,0.14972]
[1748449751508,1.7826993,107480.0,107470.0,0.14972]
[1748449752820,1.82630459,107480.0,107470.0,0.10012]
[1748449753821,1.82630459,107480.0,107470.0,0.1]
[1748449754018,1.91934859,107480.0,107470.0,0.1]
[1748449754218,1.86124958,107480.0,107470.0,0.1]
[1748449754719,1.76820558,107480.0,107470.0,0.10012]
[1748449758125,1.76820558,107480.0,107470.0,0.14662]
[1748449759024,0.1860337,107470.0,107460.0,0.04833952]
[1748449759229,1.62672416,107470.0,107460.0,0.11663952]
[1748449759434,1.38513917,107470.0,107460.0,0.11663952]
[1748449759727,1.38513917,107470.0,107460.0,0.11675952]
[1748449760928,1.38513917,107470.0,107460.0,0.11663952]
[1748449761124,1.38513917,107470.0,107460.0,0.11675952]
[1748449761524,1.29812688,107470.0,107460.0,0.11675952]
[1748449765223,1.34161095,107470.0,107460.0,0.11675952]
[1748449765427,1.10002596,107470.0,107460.0,0.11675952]
[1748449765734,1.87773095,107470.0,107460.0,0.16625952]
[1748449765930,1.87773095,107470.0,107460.0,0.21345952]
[1748449766122,1.44445095,107470.0,107460.0,0.21345952]
[1748449766323,1.87773095,107470.0,107460.0,0.37760952]
[1748449767435,1.87773095,107470.0,107460.0,0.37760915]
[1748449768336,1.87773095,107470.0,107460.0,0.33040915]
[1748449768733,1.87772761,107470.0,107460.0,0.33040915]
[1748449769232,1.87772761,107470.0,107460.0,0.36395952]
[1748449769436,1.87772761,107470.0,107460.0,0.3781094]
[1748449770239,1.87772761,107470.0,107460.0,0.37810963]
[1748449770440,1.34160761,107470.0,107460.0,0.37810962]
[1748449770642,1.87768761,107470.0,107460.0,0.37810962]
[1748449771139,1.87768875,107470.0,107460.0,0.37810962]
[1748449771840,1.87768875,107470.0,107460.0,0.37810998]
[1748449772835,1.87768875,107470.0,107460.0,0.37811212]
[1748449773036,1.87769578,107470.0,107460.0,0.37811212]
[1748449774138,1.87769578,107470.0,107460.0,0.36395952]
[1748449774339,1.87769578,107470.0,107460.0,0.37811383]
[1748449775341,1.87769578,107470.0,107460.0,0.37811567]
[1748449775545,1.44445578,107470.0,107460.0,0.56416667]
[1748449775841,1.87765578,107470.0,107460.0,0.56416842]
[1748449776240,1.87765578,107470.0,107460.0,0.55001052]
[1748449776539,1.83416688,107470.0,107460.0,0.56695841]
[1748449776744,1.83416688,107470.0,107460.0,0.5670653]
[1748449777228,1.77615869,107470.0,107460.0,0.5670653]
[1748449777432,1.83417672,107470.0,107460.0,0.5670653]
[1748449777635,1.83417672,107470.0,107460.0,0.55280052]
[1748449777935,1.83417672,107470.0,107460.0,0.56706772]
[1748449778542,1.92118901,107470.0,107460.0,0.56706772]
[1748449778933,1.92118901,107470.0,107460.0,0.56707152]
[1748449779443,1.92118901,107470.0,107460.0,0.38102052]
[1748449780143,1.92118901,107470.0,107460.0,0.36674952]
[1748449780535,1.92118901,107470.0,107460.0,0.38102286]
[1748449783432,1.92118901,107470.0,107460.0,0.38103162]
[1748449784244,1.92118901,107470.0,107460.0,0.38103317]
[1748449785249,1.92118901,107470.0,107460.0,0.38103372]
[1748449785541,1.92118901,107470.0,107460.0,0.36674952]
[1748449785742,1.92118901,107470.0,107460.0,0.38103419]
[1748449786547,1.92118901,107470.0,107460.0,0.38103432]
[1748449786750,1.92118901,107470.0,107460.0,0.38103492]
[1748449787547,1.92118901,107470.0,107460.0,0.38103489]
[1748449788251,1.92106901,107470.0,107460.0,0.38103489]
[1748449788553,1.92106901,107470.0,107460.0,0.38103703]
[1748449789556,1.86305098,107470.0,107460.0,0.38103703]
[1748449789746,0.75781229,107470.0,107460.0,0.56708803]
[1748449789948,0.50594961,107480.0,107470.0,0.1860337]
[1748449790145,0.59042225,107480.0,107470.0,0.8580165]
[1748449790455,0.94937871,107480.0,107470.0,0.30494831]
[1748449790641,1.508691,107480.0,107470.0,0.13678636]
[1748449791142,1.508691,107480.0,107470.0,0.13690636]
[1748449791446,1.50865212,107480.0,107470.0,0.18170636]
[1748449791640,1.45055368,107480.0,107470.0,0.13690636]
[1748449791840,1.45055368,107480.0,107470.0,0.13890636]
[1748449792146,1.45055368,107480.0,107470.0,0.13990636]
[1748449792655,1.45055368,107480.0,107470.0,0.14256763]
[1748449792847,1.34771368,107480.0,107470.0,0.14268763]
[1748449793049,1.88347368,107480.0,107470.0,0.14268763]
[1748449793247,1.88447368,107480.0,107470.0,0.14168763]
[1748449793446,1.88547368,107480.0,107470.0,0.13968763]
[1748449794052,1.88547368,107480.0,107470.0,0.28968763]
[1748449794250,1.88543368,107480.0,107470.0,0.33228763]
[1748449794853,1.34971368,107480.0,107470.0,0.33228661]
[1748449795043,1.88543368,107480.0,107470.0,0.33228661]
[1748449796450,1.88543368,107480.0,107470.0,0.33228632]
[1748449796756,1.88543368,107480.0,107470.0,0.28968632]
[1748449797255,1.88543368,107480.0,107470.0,0.05968632]
[1748449797548,1.88543368,107480.0,107470.0,0.09968632]
[1748449797749,1.88543368,107480.0,107470.0,0.09968575]
[1748449797943,1.88543368,107480.0,107470.0,0.09968576]
[1748449800345,0.1860336,107470.0,107460.0,0.03746174]
[1748449800549,1.73561998,107470.0,107460.0,0.00013952]
[1748449800850,1.64848909,107470.0,107460.0,0.00025952]
[1748449801043,1.69848909,107470.0,107460.0,0.00025952]
[1748449801455,1.69848909,107470.0,107460.0,0.00013952]
[1748449801655,1.69848909,107470.0,107460.0,0.00025952]
[1748449803454,2.05928909,107470.0,107460.0,0.00025952]
[1748449803857,2.15234109,107470.0,107460.0,2e-08]
[1748449804153,0.236051,107460.0,107450.0,2e-08]
[1748449804355,2.15724952,107460.0,107450.0,2e-08]
[1748449805255,2.12819189,107460.0,107450.0,0.00100002]
[1748449805750,2.12819189,107460.0,107450.0,0.00300002]
[1748449806758,2.12819189,107460.0,107450.0,2e-08]
[1748449806759,2.12919189,107460.0,107450.0,2e-08]
[1748449806959,2.13119189,107460.0,107450.0,0.00012002]
[1748449807848,2.13119189,107460.0,107450.0,2e-08]
[1748449808048,2.25331353,107460.0,107450.0,2e-08]
[1748449808360,2.25331353,107460.0,107450.0,0.00012002]
[1748449809558,2.29941353,107460.0,107450.0,0.00012002]
[1748449809958,2.03115215,107460.0,107450.0,0.00012002]
[1748449811159,2.03115215,107460.0,107450.0,2e-08]
[1748449811962,0.59686828,107450.0,107440.0,0.00292952]
[1748449812157,1.25420208,107450.0,107440.0,0.04512952]
[1748449812348,1.46911068,107450.0,107440.0,0.04524952]
[1748449812751,1.68712208,107450.0,107440.0,0.06524952]
[1748449812952,1.85959769,107450.0,107440.0,0.08854952]
[1748449813564,1.86059769,107450.0,107440.0,0.08854952]
[1748449813863,1.8171904,107450.0,107440.0,0.08854952]
[1748449814352,1.86060643,107450.0,107440.0,0.08854952]
[1748449814761,1.8171904,107450.0,107440.0,0.08854952]
[1748449815262,1.86060329,107450.0,107440.0,0.08854952]
[1748449815464,1.42768087,107450.0,107440.0,0.08854952]
[1748449815757,1.86060087,107450.0,107440.0,0.08854952]
[1748449815954,1.86059767,107450.0,107440.0,0.08854952]
[1748449816154,1.42767747,107450.0,107440.0,0.08854952]
[1748449816360,1.96327747,107450.0,107440.0,0.08854952]
[1748449817454,1.74836887,107450.0,107440.0,0.08854952]
[1748449817659,1.96327747,107450.0,107440.0,0.08854952]
[1748449818461,1.12499535,107450.0,107440.0,0.49954372]
[1748449818653,1.46446828,107450.0,107440.0,0.75954372]
[1748449818973,1.19446828,107450.0,107440.0,0.80574372]
[1748449819163,1.19446828,107450.0,107440.0,0.59083512]
[1748449819476,1.40446828,107450.0,107440.0,0.59083512]
[1748449819764,1.66337688,107450.0,107440.0,0.40474952]
[1748449820465,1.66337688,107450.0,107440.0,0.59083512]
[1748449820665,1.44846828,107450.0,107440.0,0.59083512]
[1748449820865,1.01558828,107450.0,107440.0,0.59083512]
[1748449821067,1.01558828,107450.0,107440.0,0.40474952]
[1748449821068,1.40446828,107450.0,107440.0,0.40474952]
[1748449821365,1.40446828,107450.0,107440.0,0.59083512]
[1748449821768,0.97158828,107450.0,107440.0,0.59083512]
[1748449821960,1.40446828,107450.0,107440.0,0.59083512]
[1748449822865,0.86886828,107450.0,107440.0,0.59083512]
[1748449823067,1.40426828,107450.0,107440.0,0.59083512]
[1748449823360,0.97142828,107450.0,107440.0,0.59083512]
[1748449823576,1.40426828,107450.0,107440.0,0.59083512]
[1748449825871,1.40426828,107450.0,107440.0,0.40474952]
[1748449826071,1.61917688,107450.0,107440.0,0.40474952]
[1748449826373,1.61917688,107450.0,107440.0,0.17560072]
[1748449826669,1.85943643,107450.0,107440.0,0.00012]
[1748449826866,0.1860856,107440.0,107430.0,0.0436]
[1748449827066,1.29207487,107440.0,107430.0,0.0736]
[1748449827276,1.07716627,107440.0,107430.0,0.0736]
[1748449827461,1.27618135,107440.0,107430.0,0.0736]
[1748449827765,1.33407487,107440.0,107430.0,0.07372]
[1748449827967,1.33407487,107440.0,107430.0,0.0736]
[1748449828169,1.33407487,107440.0,107430.0,0.07372]
[1748449828666,1.33409596,107440.0,107430.0,0.07372]
[1748449829568,1.29158772,107440.0,107430.0,0.07372]
[1748449829763,1.29258772,107440.0,107430.0,0.16542]
[1748449830355,0.186103,107430.0,107420.0,0.00292952]
[1748449830563,1.90469031,107430.0,107420.0,0.04892952]
[1748449830766,1.8611567,107430.0,107420.0,0.04892952]
[1748449830968,1.8611567,107430.0,107420.0,0.09072952]
[1748449831271,1.8611567,107430.0,107420.0,0.09084952]
[1748449831469,1.90467866,107430.0,107420.0,0.09084952]
[1748449831665,1.77431642,107430.0,107420.0,0.09084952]
[1748449835169,1.08130782,107430.0,107420.0,0.09084952]
[1748449835364,1.45581036,107430.0,107420.0,0.54575812]
[1748449835569,1.45581036,107430.0,107420.0,0.58310048]
[1748449835570,1.092303,107430.0,107420.0,0.58310048]
[1748449835769,1.092303,107430.0,107420.0,0.36819188]
[1748449835957,1.137503,107430.0,107420.0,0.36819188]
[1748449837070,1.3524116,107430.0,107420.0,0.36819188]
[1748449837269,1.3943116,107430.0,107420.0,0.36819188]
[1748449837469,1.3943116,107430.0,107420.0,0.36818583]
[1748449837860,1.3943116,107430.0,107420.0,0.33084952]
[1748449839269,1.7043116,107430.0,107420.0,0.15084952]
[1748449839575,1.7478231,107430.0,107420.0,0.15084952]
[1748449839961,1.7478231,107430.0,107420.0,0.15072952]
[1748449840167,1.7478231,107430.0,107420.0,0.15084952]
[1748449840963,1.4378231,107430.0,107420.0,0.15084952]
[1748449841671,1.0049831,107430.0,107420.0,0.15084952]
[1748449841869,1.1809745,107430.0,107420.0,0.52696982]
[1748449842066,0.546903,107430.0,107420.0,0.77921475]
[1748449842466,0.3608,107430.0,107420.0,0.90001928]
[1748449842678,0.84378233,107440.0,107430.0,0.186103]
[1748449842871,1.27658233,107440.0,107430.0,0.98003899]
[1748449843075,1.27658233,107440.0,107430.0,1.05459159]
[1748449843272,1.27658233,107440.0,107430.0,0.98003899]
[1748449843471,1.27658233,107440.0,107430.0,0.76513039]